bitfinex-derivatives/quotes_ETHF0:USTF0_20250824
["timestamp","ask_amount","ask_price","bid_price","bid_amount"]
[1756077428828,41.2057,4798.4,4798.3,3.6153]
[1756077429629,0.4057,4798.4,4798.3,3.6153]
[1756077431130,0.4057,4798.9,4798.4,0.4075]
[1756077431334,0.4057,4798.9,4798.8,3.6153]
[1756077431936,41.2057,4799.4,4798.8,3.2078]
[1756077432135,0.4057,4799.8,4799.3,3.6153]
[1756077432331,0.4057,4799.8,4799.4,0.4075]
[1756077432639,40.8,4799.7,4799.6,0.4075]
[1756077433045,3.2078,4800.4,4799.3,3.2078]
[1756077433046,0.4134,4800.5,4799.5,0.41674]
[1756077433334,0.5057,4800.2,4800.1,3.6153]
[1756077437843,1.2414,4800.2,4800.1,3.6153]
[1756077438032,1.2414,4800.2,4800.1,3.2078]
[1756077438742,1.1414,4800.1,4799.5,3.2078]
[1756077439045,4.1,4800.2,4799.5,3.2078]
[1756077439046,20.046,4800.0,4799.5,3.2078]
[1756077439344,1.1414,4799.7,4799.5,3.2078]
[1756077439540,1.1414,4799.5,4798.8,0.0361]
[1756077439734,0.4057,4799.3,4798.7,3.2078]
[1756077439934,1.1414,4799.3,4798.7,3.2078]
[1756077440143,1.1414,4799.2,4798.7,3.2078]
[1756077440340,20.042,4799.4,4798.7,3.2078]
[1756077440538,0.4057,4799.1,4798.7,3.2078]
[1756077440739,0.4134,4799.0,4798.7,3.2078]
[1756077440934,0.4134,4799.0,4798.9,0.4075]
[1756077441543,1.1414,4799.0,4798.9,0.4075]
[1756077441742,0.8191,4799.0,4798.9,0.4075]
[1756077441939,1.1414,4799.0,4798.9,0.4075]
[1756077442144,60.841,4799.6,4798.7,3.2078]
[1756077442344,0.8191,4799.4,4798.7,3.2078]
[1756077442539,60.841,4799.6,4798.7,3.2078]
[1756077442740,1.1414,4799.4,4798.7,3.2078]
[1756077442935,64.0488,4799.6,4798.7,3.2078]
[1756077443140,0.7357,4799.4,4798.7,3.2078]
[1756077443445,0.8191,4799.1,4798.7,3.2078]
[1756077443646,1.1414,4798.9,4798.7,3.2078]
[1756077444245,1.1414,4798.8,4798.7,3.6153]
[1756077444749,1.1414,4798.8,4798.7,3.2439]
[1756077444952,41.9414,4798.8,4798.7,3.2439]
[1756077445434,41.2057,4798.8,4798.7,3.6153]
[1756077445636,41.6191,4798.8,4798.7,3.6153]
[1756077445837,41.9414,4798.8,4798.7,3.2078]
[1756077447446,41.9414,4798.8,4798.7,3.2439]
[1756077447747,41.9414,4798.8,4798.7,3.6153]
[1756077447946,41.2057,4798.8,4798.7,3.6153]
[1756077448349,0.4231,4799.3,4798.7,3.6153]
[1756077448545,0.3943,4799.1,4798.8,0.3922]
[1756077448748,0.4231,4799.8,4799.3,0.3922]
[1756077448951,0.3943,4799.9,4799.5,3.2078]
[1756077449148,1.1546,4800.1,4799.6,0.0364]
[1756077449349,0.1,4800.2,4799.5,3.2078]
[1756077449547,40.8,4800.1,4799.5,3.2078]
[1756077449747,0.4231,4800.0,4799.5,3.2078]
[1756077449950,0.7603,4800.0,4799.5,3.2078]
[1756077450151,0.3943,4799.8,4799.6,0.3922]
[1756077450348,0.3943,4799.9,4799.6,0.3922]
[1756077450542,0.3943,4799.8,4799.6,0.3558]
[1756077450747,0.3943,4799.8,4799.7,0.3922]
[1756077451344,0.3943,4800.1,4799.8,0.3922]
[1756077451552,0.3943,4800.1,4800.0,3.6]
[1756077452645,1.1546,4800.1,4800.0,3.2078]
[1756077453654,41.9546,4800.1,4800.0,3.2078]
[1756077454156,41.9546,4800.1,4799.5,0.3537]
[1756077454157,1.1546,4800.0,4799.5,3.5615]
[1756077454357,0.3943,4800.0,4799.6,0.0363]
[1756077454558,0.8174,4799.9,4799.7,0.39]
[1756077454746,0.3943,4799.8,4799.6,0.39]
[1756077454951,0.4231,4799.7,4799.5,3.2078]
[1756077455253,0.8174,4799.6,4799.5,3.2078]
[1756077455557,0.3943,4799.6,4799.5,3.5978]
[1756077456656,40.8,4800.1,4799.5,3.5978]
[1756077456858,40.8,4800.1,4800.0,3.5978]
[1756077457252,41.1943,4800.1,4800.0,3.5978]
[1756077457757,41.9546,4800.1,4800.0,3.2078]
[1756077458656,41.1943,4800.1,4800.0,3.5978]
[1756077458855,0.1,4800.2,4800.0,3.2078]
[1756077459056,0.4943,4800.2,4800.1,0.39]
[1756077460355,1.2546,4800.2,4800.1,0.39]
[1756077460557,1.1546,4800.1,4800.0,3.2078]
[1756077461254,0.3943,4801.1,4800.4,0.41667]
[1756077461457,0.3943,4801.1,4801.0,3.4978]
[1756077461858,0.8174,4801.1,4801.0,3.4978]
[1756077462060,1.1546,4801.1,4801.0,3.4978]
[1756077463363,0.3943,4801.1,4801.0,3.4978]
[1756077465859,0.664,4801.1,4801.0,3.7727]
[1756077466059,1.9358,4801.1,4801.0,3.2078]
[1756077466366,40.8,4801.4,4800.3,3.4827]
[1756077466367,1.9358,4800.4,4800.3,3.4827]
[1756077466767,1.3776,4800.4,4800.3,3.7727]
[1756077467265,1.5986,4800.4,4800.3,3.7727]
[1756077467454,0.3943,4800.4,4800.3,3.7727]
[1756077467861,1.6453,4800.4,4800.3,3.7727]
[1756077468058,1.9358,4800.4,4800.3,3.7727]
[1756077468261,1.1546,4800.4,4800.3,3.2078]
[1756077468957,41.9546,4800.4,4800.3,3.2078]
[1756077469966,44.8,4800.4,4799.8,3.2078]
[1756077470162,1.1546,4799.8,4798.8,3.2078]
[1756077470358,3.2078,4799.9,4798.8,3.2078]
[1756077470359,19.999,4799.7,4798.8,3.2078]
[1756077470565,0.8174,4799.5,4798.8,3.5589]
[1756077471064,0.3372,4799.7,4798.9,0.3511]
[1756077471259,3.2078,4799.9,4798.8,3.5589]
[1756077471260,0.8174,4798.9,4798.8,3.5589]
[1756077471464,0.8174,4799.5,4799.1,0.29]
[1756077471668,0.8174,4799.5,4798.9,1.034]
[1756077471870,40.8,4799.0,4798.9,1.034]
[1756077472467,0.8174,4799.5,4798.9,1.034]
[1756077472661,0.8174,4799.5,4798.9,0.7068]
[1756077472867,40.8,4799.4,4799.3,1.034]
[1756077473574,41.6174,4799.4,4799.3,1.034]
[1756077473769,41.9546,4799.4,4799.3,0.3511]
[1756077473970,41.2231,4799.4,4799.3,0.3511]
[1756077474172,41.9546,4799.4,4799.3,0.3511]
[1756077474474,41.9546,4799.4,4799.3,4.2418]
[1756077475372,41.9546,4799.4,4799.3,3.2078]
[1756077475678,1.1546,4799.2,4798.9,1.034]
[1756077475866,1.1546,4799.1,4799.0,0.744]
[1756077476071,1.1546,4799.1,4799.0,1.034]
[1756077476777,1.1546,4799.1,4799.0,0.744]
[1756077478380,1.9219,4799.1,4799.0,1.0258]
[1756077479376,1.9219,4799.1,4799.0,1.5335]
[1756077480180,1.9219,4799.1,4799.0,1.1406]
[1756077480386,1.9219,4799.1,4799.0,0.8653]
[1756077480576,40.8,4799.4,4798.8,3.2078]
[1756077480577,1.9482,4798.9,4798.8,3.2078]
[1756077481079,1.9482,4798.9,4798.8,4.0331]
[1756077481271,1.6004,4798.9,4798.8,4.98]
[1756077481472,1.2001,4798.9,4798.8,4.98]
[1756077481676,1.9482,4798.9,4798.8,4.98]
[1756077482073,1.6004,4799.5,4799.4,0.4981]
[1756077482279,0.8278,4799.9,4799.4,4.98]
[1756077482479,1.0872,4799.8,4799.7,0.7734]
[1756077482675,1.6004,4799.8,4799.7,1.7722]
[1756077483282,1.2001,4799.8,4799.7,1.7722]
[1756077483884,0.4003,4800.2,4799.8,0.41672]
[1756077484189,0.7481,4801.1,4800.5,0.9988]
[1756077484387,0.7481,4801.1,4800.5,4.2066]
[1756077484586,42.0001,4801.0,4800.9,0.2657]
[1756077484890,41.5726,4801.0,4800.5,4.2066]
[1756077485087,1.2001,4800.6,4800.5,4.6528]
[1756077485280,0.7481,4800.9,4800.5,4.6528]
[1756077485485,40.8,4801.0,4800.9,1.445]
[1756077485689,41.2275,4801.0,4800.9,1.7722]
[1756077486093,0.6597,4801.4,4801.3,0.7734]
[1756077486288,1.0872,4801.4,4801.3,1.7722]
[1756077486587,42.7482,4801.4,4801.3,1.7722]
[1756077486784,42.7482,4801.4,4801.3,0.2657]
[1756077486991,0.7726,4800.5,4800.4,3.2078]
[1756077487188,44.0078,4801.4,4799.8,0.3272]
[1756077487189,1.6004,4800.0,4799.9,3.4735]
[1756077487380,1.1756,4800.0,4799.9,3.535]
[1756077487580,0.3478,4800.4,4799.9,4.2066]
[1756077487780,0.4275,4800.9,4800.3,0.3858]
[1756077487986,0.7481,4800.8,4800.6,0.3272]
[1756077488185,1.1756,4801.1,4800.5,3.2078]
[1756077488488,1.1756,4801.1,4800.5,3.535]
[1756077488689,19.978,4801.2,4800.5,3.535]
[1756077488889,1.1756,4801.1,4800.5,3.535]
[1756077489191,40.8,4801.4,4800.6,0.9988]
[1756077489192,1.1756,4800.9,4800.6,0.9988]
[1756077489385,0.8278,4800.8,4800.7,0.3858]
[1756077489593,19.975,4801.3,4800.5,3.2078]
[1756077489787,40.8,4801.4,4800.6,0.713]
[1756077489983,0.4275,4801.5,4801.2,3.2078]
[1756077490487,0.4275,4802.1,4801.5,0.6716]
[1756077490693,40.8,4802.3,4801.3,0.9988]
[1756077490881,1.1756,4802.2,4801.3,0.9988]
[1756077491082,0.8278,4802.1,4801.3,0.9988]
[1756077491292,0.8278,4802.1,4801.5,0.2858]
[1756077491887,0.7753,4802.0,4801.5,0.2858]
[1756077492089,40.8,4802.3,4801.5,0.2858]
[1756077492390,1.1756,4802.1,4801.5,0.2858]
[1756077492689,1.1756,4801.7,4801.3,0.713]
[1756077492885,1.1756,4802.2,4801.3,0.713]
[1756077493091,0.7481,4802.1,4801.3,0.713]
[1756077493291,0.4275,4802.0,4801.3,0.713]
[1756077493791,19.967,4802.2,4801.2,3.2078]
[1756077493992,1.1756,4801.6,4801.4,0.713]
[1756077494193,1.1756,4802.1,4801.4,0.713]
[1756077494494,19.967,4802.2,4801.4,0.713]
[1756077494697,0.7481,4802.1,4801.4,0.713]
[1756077494895,0.4275,4802.0,4801.4,0.713]
[1756077496497,1.435,4801.8,4801.7,0.2657]
[1756077496795,1.9482,4801.8,4801.7,0.2657]
[1756077499691,1.9482,4801.8,4801.7,0.7734]
[1756077499895,1.6004,4801.8,4801.7,4.98]
[1756077500601,1.9482,4801.8,4801.7,3.2078]
[1756077500895,1.1756,4801.3,4801.0,3.2078]
[1756077501194,19.955,4801.8,4801.0,3.2078]
[1756077501195,1.9482,4801.1,4801.0,3.2078]
[1756077501398,1.9482,4801.1,4801.0,3.8007]
[1756077501694,42.7482,4801.1,4801.0,4.0331]
[1756077502293,42.7482,4801.1,4801.0,3.2078]
[1756077503193,42.7482,4801.1,4801.0,3.7059]
[1756077503499,42.7482,4801.1,4801.0,4.98]
[1756077503998,42.7482,4801.1,4801.0,4.6942]
[1756077504198,42.7482,4801.1,4801.0,3.4735]
[1756077504393,42.7482,4801.1,4799.6,0.058]
[1756077504394,1.1756,4801.0,4800.5,3.2078]
[1756077504600,1.9482,4800.6,4800.5,3.4735]
[1756077504895,1.9482,4800.6,4800.5,3.7059]
[1756077506396,40.8,4801.1,4801.0,0.2324]
[1756077506595,0.4275,4801.7,4801.3,1.7722]
[1756077506797,1.6004,4801.7,4801.6,0.541]
[1756077506995,42.7482,4801.7,4801.6,0.8682]
[1756077508504,42.7482,4801.7,4801.3,0.3858]
[1756077508700,1.9191,4801.1,4801.0,0.2762]
[1756077508997,1.9191,4800.8,4800.7,1.7831]
[1756077509608,1.9191,4800.8,4800.7,0.2762]
[1756077510104,1.9191,4800.8,4800.7,0.6122]
[1756077510298,42.7191,4800.8,4800.7,0.6122]
[1756077510499,42.7191,4800.8,4800.7,1.7831]
[1756077511401,42.7191,4800.8,4800.7,0.2762]
[1756077511911,0.4298,4801.3,4801.2,0.7615]
[1756077512101,0.6626,4801.3,4801.2,1.7811]
[1756077512405,1.9191,4801.2,4801.1,3.2078]
[1756077513000,1.9191,4801.2,4801.1,3.484]
[1756077514007,1.9191,4801.2,4801.1,3.2078]
[1756077514208,1.9191,4801.2,4801.1,3.20307534]
[1756077516105,1.9191,4801.2,4801.1,3.47927534]
[1756077516303,1.9191,4801.2,4801.1,4.71557534]
[1756077516704,1.9191,4801.2,4801.1,3.70227534]
[1756077516904,1.9191,4801.2,4801.1,3.47927534]
[1756077517102,1.5974,4801.2,4801.1,4.98417534]
[1756077517306,40.8,4801.3,4801.2,1.7811]
[1756077517506,41.9621,4801.3,4801.2,0.2762]
[1756077517705,1.9191,4801.2,4801.1,3.47927534]
[1756077517906,1.9191,4801.2,4801.1,0.2762]
[1756077518308,1.9191,4801.2,4801.1,1.7811]
[1756077518500,1.1868,4801.2,4801.1,1.7811]
[1756077518910,1.5974,4801.2,4801.1,1.7811]
[1756077519307,1.9191,4801.2,4801.1,0.8352]
[1756077519610,1.9191,4801.2,4801.1,1.7811]
[1756077519811,1.5974,4801.2,4801.1,1.7811]
[1756077520012,1.5974,4801.2,4801.1,4.9889]
[1756077520208,1.1868,4801.2,4801.1,4.9889]
[1756077521513,1.9191,4801.2,4801.1,4.9889]
[1756077521709,1.9191,4801.2,4801.1,3.484]
[1756077522111,1.9191,4801.2,4801.1,3.2078]
[1756077522613,1.9191,4801.2,4801.1,4.9889]
[1756077522811,1.1868,4801.2,4801.1,4.9889]
[1756077523018,40.8,4801.3,4801.1,4.9889]
[1756077523312,40.8,4801.3,4801.2,1.0196]
[1756077523510,40.8,4801.3,4801.2,1.7811]
[1756077523711,41.2298,4801.3,4801.2,1.7811]
[1756077524910,40.8,4801.3,4801.2,1.7811]
[1756077525115,0.4298,4801.6,4801.5,0.7615]
[1756077525310,0.4298,4801.6,4801.5,1.7811]
[1756077525505,41.2298,4801.6,4801.5,1.7811]
[1756077525814,41.9621,4801.6,4801.5,1.5125]
[1756077526808,41.9621,4801.6,4801.5,1.7811]
[1756077527015,1.9191,4801.2,4801.1,4.3053]
[1756077527611,1.9191,4801.2,4801.1,4.9889]
[1756077529117,1.9191,4801.2,4801.1,3.484]
[1756077529416,1.9191,4801.2,4801.1,3.2078]
[1756077530216,1.9191,4801.2,4801.1,3.484]
[1756077530415,1.9191,4801.2,4801.1,4.043]
[1756077531114,1.9191,4801.2,4801.1,4.9889]
[1756077531719,1.9191,4801.2,4801.1,3.707]
[1756077531921,1.9191,4801.2,4801.1,4.043]
[1756077532312,1.9191,4801.2,4801.1,3.2078]
[1756077532716,1.9191,4801.2,4800.3,0.41668]
[1756077532717,0.757,4801.2,4800.5,3.2078]
[1756077532917,1.9191,4800.6,4800.5,4.9889]
[1756077533221,1.5974,4800.6,4800.5,4.9889]
[1756077533421,1.9191,4801.4,4801.3,1.7811]
[1756077533717,1.9191,4800.9,4800.8,0.2762]
[1756077533914,1.9191,4800.9,4800.8,0.4992]
[1756077534117,1.9191,4800.9,4800.8,1.7811]
[1756077534518,1.1868,4800.9,4800.8,1.7811]
[1756077535026,1.5974,4800.9,4800.8,1.7811]
[1756077536618,0.2328,4800.6,4800.5,3.2078]
[1756077536817,1.9191,4800.6,4800.5,3.2078]
[1756077537122,1.9191,4800.6,4800.5,3.484]
[1756077537421,42.7191,4800.6,4800.5,3.484]
[1756077537614,42.7191,4800.6,4800.5,4.043]
[1756077537812,42.7191,4800.6,4800.5,4.3053]
[1756077538222,42.7191,4800.6,4800.5,4.6838]
[1756077538422,40.8,4800.6,4800.5,4.9395]
[1756077538721,1.0983,4801.1,4801.0,0.746]
[1756077538920,1.0983,4801.1,4801.0,4.9265]
[1756077539321,42.6988,4801.1,4801.0,4.9265]
[1756077539720,42.3633,4801.1,4801.0,4.9265]
[1756077540313,41.0276,4801.1,4801.0,4.9265]
[1756077540518,42.1636,4801.1,4801.0,4.9265]
[1756077540821,42.1636,4801.1,4801.0,4.6708]
[1756077541613,42.1636,4801.1,4801.0,4.9265]
[1756077542121,42.1636,4801.1,4801.0,4.6708]
[1756077543222,42.1636,4801.1,4801.0,3.9538]
[1756077543526,42.1636,4801.1,4801.0,4.548]
[1756077543722,42.1636,4801.1,4801.0,4.9265]
[1756077543923,41.4522,4801.1,4801.0,4.9265]
[1756077544218,0.7628,4801.9,4801.8,1.7187]
[1756077544424,0.7628,4801.9,4801.8,4.9265]
[1756077544729,1.8988,4801.9,4801.8,0.2596]
[1756077545023,1.8988,4801.4,4801.3,3.4674]
[1756077545622,42.6988,4801.4,4801.3,3.4674]
[1756077546222,42.6988,4801.4,4801.3,3.6813]
[1756077546423,42.6988,4801.4,4801.3,4.6708]
[1756077546821,42.6988,4801.4,4801.3,4.9265]
[1756077548216,1.0983,4801.7,4801.6,0.746]
[1756077548424,1.5229,4801.7,4801.3,3.2078]
[1756077548728,1.5229,4801.4,4801.3,3.2078]
[1756077548929,1.8988,4801.4,4801.3,3.2078]
[1756077549521,1.8988,4801.4,4801.3,3.4674]
[1756077550325,1.8988,4801.4,4801.3,4.0198]
[1756077550929,1.1874,4801.4,4801.3,4.548]
[1756077551128,1.8988,4801.4,4801.3,4.9265]
[1756077551326,1.8988,4801.4,4801.3,4.6708]
[1756077551631,1.8988,4801.4,4801.3,3.4674]
[1756077552026,1.8988,4801.4,4801.3,3.2078]
[1756077552525,1.8988,4801.4,4801.3,3.4674]
[1756077553533,1.8988,4801.4,4801.3,3.2078]
[1756077554033,1.8988,4801.4,4801.3,3.4674]
[1756077554531,1.8988,4801.4,4801.3,3.2078]
[1756077554932,21.7668,4801.4,4800.8,3.2078]
[1756077555135,1.8988,4800.9,4800.8,3.2078]
[1756077555731,1.8988,4800.9,4800.8,3.4674]
[1756077556028,1.8988,4800.9,4800.8,4.6708]
[1756077557233,1.8988,4800.9,4800.8,3.6813]
[1756077557434,1.8988,4800.9,4800.8,3.2078]
[1756077557935,1.5633,4800.4,4800.3,3.2078]
[1756077558129,1.8988,4800.4,4800.3,3.2078]
[1756077558331,1.8988,4800.4,4799.7,3.2078]
[1756077558638,1.0983,4799.8,4799.7,3.2078]
[1756077558835,1.8988,4799.8,4799.7,3.2078]
[1756077559039,1.8988,4799.8,4799.7,4.2923]
[1756077559537,1.8988,4799.8,4799.7,3.4674]
[1756077560329,1.8988,4799.8,4799.7,4.6708]
[1756077560533,1.8988,4799.8,4799.7,4.9265]
[1756077561132,25.4233,4799.8,4799.2,3.2078]
[1756077561330,1.1874,4798.8,4798.7,3.2078]
[1756077561531,1.8988,4798.8,4798.7,3.2078]
[1756077561725,42.6988,4798.8,4798.7,3.2078]
[1756077563428,42.6988,4798.8,4798.2,3.2078]
[1756077563429,1.8988,4798.3,4798.2,3.2078]
[1756077563630,0.4834,4797.5,4797.4,3.8059]
[1756077563834,1.8988,4797.5,4797.4,3.4674]
[1756077564536,42.6988,4797.5,4797.4,3.2078]
[1756077565130,42.6988,4797.5,4797.0,0.3385]
[1756077565131,42.6988,4797.5,4796.9,3.2078]
[1756077565329,1.8988,4797.0,4796.9,3.2078]
[1756077566533,1.8988,4797.0,4796.9,4.2095]
[1756077566732,1.8988,4797.0,4796.9,4.2923]
[1756077567134,1.8988,4797.0,4796.9,3.2078]
[1756077567335,1.8988,4797.0,4796.4,3.2078]
[1756077567535,0.7628,4796.5,4796.4,3.2078]
[1756077567730,41.5628,4796.5,4796.4,3.2078]
[1756077567941,42.6908,4796.5,4796.4,3.2078]
[1756077570445,1.8794,4796.4,4796.3,0.8386]
[1756077573248,1.8794,4796.4,4796.0,0.6112]
[1756077573249,1.8794,4796.0,4795.9,3.7072]
[1756077573444,0.7514,4796.0,4795.4,3.2078]
[1756077573641,1.8794,4795.5,4795.4,3.2078]
[1756077573845,1.8794,4795.5,4795.4,3.4708]
[1756077574041,1.8794,4795.5,4795.4,3.7072]
[1756077574741,1.8794,4795.5,4795.4,3.2078]
[1756077575140,1.8794,4795.5,4795.4,4.6672]
[1756077575340,1.5483,4795.5,4795.4,4.9087]
[1756077575545,42.3483,4795.5,4795.4,4.9087]
[1756077576946,41.9496,4795.5,4795.4,4.9087]
[1756077577142,0.925,4796.4,4796.3,0.5161]
[1756077577347,0.7969,4796.8,4796.3,1.7009]
[1756077577546,0.925,4796.8,4796.7,0.7525]
[1756077577742,41.725,4796.8,4796.7,1.7009]
[1756077578147,42.1232,4796.8,4796.7,1.7009]
[1756077578341,40.8,4796.8,4796.7,1.7009]
[1756077578548,1.3232,4797.4,4797.3,1.7009]
[1756077578753,0.7969,4797.8,4797.3,1.7009]
[1756077578951,1.0825,4797.7,4797.6,0.4994]
[1756077579152,0.7514,4797.7,4797.6,1.4594]
[1756077579453,40.8,4797.8,4797.6,1.4594]
[1756077579454,40.8,4797.8,4797.6,0.7525]
[1756077579648,0.6461,4797.8,4797.7,1.7009]
[1756077579852,1.5483,4797.8,4797.7,1.7009]
[1756077580650,3.2078,4799.6,4797.7,1.7009]
[1756077580651,0.7969,4798.4,4798.1,0.9484]
[1756077580949,0.3987,4799.5,4798.3,0.7525]
[1756077581150,0.7969,4799.9,4799.4,0.3392]
[1756077581357,0.3982,4799.9,4799.8,0.9484]
[1756077581550,0.3987,4800.2,4799.6,3.2078]
[1756077581854,41.1982,4800.1,4800.0,0.9484]
[1756077582252,0.3982,4800.1,4800.0,0.9484]
[1756077582454,0.7969,4800.1,4800.0,0.9484]
[1756077582661,0.7969,4800.6,4800.2,0.41669]
[1756077582855,0.7969,4800.6,4800.5,3.2078]
[1756077583055,0.7969,4800.6,4800.5,4.1562]
[1756077583557,1.128,4800.6,4800.5,4.1562]
[1756077583859,1.128,4800.6,4800.5,3.547]
[1756077584055,0.7969,4800.6,4800.5,3.9147]
[1756077584255,40.8,4800.7,4800.5,3.2078]
[1756077584460,41.5298,4800.7,4800.6,0.7069]
[1756077584658,40.8,4800.7,4800.0,0.3392]
[1756077584857,1.128,4800.5,4799.9,3.2078]
[1756077585058,0.3987,4800.4,4799.9,3.2078]
[1756077585362,40.8,4800.7,4799.9,3.2078]
[1756077585561,0.7969,4800.0,4799.9,3.2078]
[1756077585759,0.7293,4799.7,4799.2,3.2078]
[1756077585963,19.837,4800.3,4799.3,0.3392]
[1756077586260,1.128,4799.4,4799.3,0.3392]
[1756077586456,19.837,4800.3,4799.2,3.2078]
[1756077586663,1.128,4799.3,4799.2,3.547]
[1756077587260,1.128,4799.3,4799.2,3.2078]
[1756077588153,0.3982,4799.3,4799.2,4.1562]
[1756077588956,0.7969,4799.3,4799.2,4.1562]
[1756077589662,1.128,4799.3,4799.2,3.9147]
[1756077589861,1.128,4799.3,4799.2,3.547]
[1756077590166,1.128,4799.3,4799.2,3.2078]
[1756077590663,3.2078,4800.0,4798.6,3.2078]
[1756077590861,0.7293,4799.7,4798.6,3.2078]
[1756077591067,0.3987,4799.8,4798.0,3.547]
[1756077591068,3.2078,4799.8,4798.0,3.547]
[1756077591259,40.8,4799.1,4798.0,3.547]
[1756077591465,1.128,4799.0,4798.0,3.547]
[1756077591660,0.7969,4798.8,4798.0,3.547]
[1756077591856,0.3987,4799.4,4799.2,0.41678]
[1756077592062,2.73612449,4802.7,4799.3,0.2415]
[1756077592063,0.3982,4799.9,4799.3,0.2415]
[1756077592363,0.3982,4799.9,4797.3,50.0145444]
[1756077592364,40.8,4800.4,4800.1,0.9484]
[1756077592565,0.7293,4800.8,4800.2,3.2078]
[1756077592764,0.3982,4800.8,4800.2,3.2078]
[1756077592964,3.5389,4801.3,4800.2,3.2078]
[1756077593160,40.8,4801.2,4800.5,0.9484]
[1756077593366,40.8,4801.2,4800.7,0.75584]
[1756077593660,40.8,4801.2,4800.9,0.41662]
[1756077593867,0.3987,4801.6,4801.1,0.9484]
[1756077594168,0.3982,4801.6,4801.5,0.9484]
[1756077594357,40.8,4801.6,4801.3,3.2078]
[1756077594561,1.128,4801.4,4801.3,3.2078]
[1756077594862,1.128,4801.4,4801.3,3.547]
[1756077596064,41.1982,4801.6,4801.4,0.9484]
[1756077596257,41.1982,4801.6,4801.5,0.9484]
[1756077596862,41.928,4801.6,4801.5,0.9484]
[1756077597060,1.128,4801.6,4801.5,0.7069]
[1756077597666,0.7033,4802.2,4801.5,0.7069]
[1756077597866,0.3284,4802.1,4801.5,0.3392]
[1756077598059,1.0832,4801.8,4801.3,3.2078]
[1756077598260,1.0832,4801.7,4801.3,3.2078]
[1756077598454,3.2078,4802.3,4801.3,3.2078]
[1756077598660,1.0832,4802.2,4801.3,3.2078]
[1756077598859,3.2078,4802.3,4801.3,3.2078]
[1756077599268,40.8,4802.1,4801.3,3.2078]
[1756077599461,1.0832,4802.0,4801.3,3.2078]
[1756077599861,0.3749,4801.9,4801.3,3.2078]
[1756077600165,1.0832,4802.0,4801.3,3.2078]
[1756077600367,40.8,4802.1,4801.3,3.2078]
[1756077600563,0.7548,4801.9,4801.3,3.2078]
[1756077600763,0.7548,4801.9,4800.9,0.229]
[1756077600764,1.0832,4801.9,4800.9,0.229]
[1756077601069,40.8,4802.1,4800.7,3.5362]
[1756077601265,0.7548,4801.7,4801.0,0.64562]
[1756077601459,0.7548,4801.7,4801.1,0.7245]
[1756077601662,0.3284,4801.8,4801.3,0.6251]
[1756077601863,0.3284,4801.8,4801.2,3.5362]
[1756077601864,0.3284,4801.8,4801.5,0.9535]
[1756077602064,0.7548,4801.7,4801.3,0.6251]
[1756077602264,40.8,4802.1,4801.3,0.7245]
[1756077602670,0.7548,4801.8,4801.3,0.7245]
[1756077602865,40.8,4802.1,4801.2,3.2078]
[1756077602866,1.0832,4802.0,4801.2,3.2078]
[1756077603266,1.0832,4802.0,4800.5,0.41666]
[1756077603267,1.1267,4801.3,4800.6,3.5362]
[1756077603463,1.835,4800.7,4800.6,3.2078]
[1756077603669,0.7518,4800.7,4800.1,0.3284]
[1756077603867,1.835,4800.1,4800.0,3.2078]
[1756077604073,1.0832,4800.1,4800.0,3.2078]
[1756077604467,40.8,4800.1,4800.0,4.1613]
[1756077604869,0.3749,4801.1,4800.0,3.6039]
[1756077605070,0.7548,4801.2,4800.1,0.3284]
[1756077605276,1.0832,4801.0,4800.1,0.3284]
[1756077605572,0.3749,4801.0,4800.0,3.6039]
[1756077605875,1.0832,4800.9,4800.0,3.2078]
[1756077606073,19.795,4801.0,4800.0,3.2078]
[1756077606270,3.2078,4800.8,4799.3,3.2078]
[1756077606471,1.0832,4800.6,4799.3,3.2078]
[1756077606775,0.3799,4800.3,4799.6,0.3961]
[1756077606970,3.2078,4800.8,4799.8,1.76632]
[1756077607270,0.7548,4801.6,4800.8,0.6251]
[1756077607471,0.7548,4801.6,4800.9,0.3284]
[1756077607782,40.8,4801.5,4801.1,0.3284]
[1756077608073,40.8,4801.5,4800.8,0.9535]
[1756077608273,41.1284,4801.5,4800.8,0.9535]
[1756077608869,41.1284,4801.5,4800.8,0.6251]
[1756077609070,41.1284,4801.5,4800.9,0.3284]
[1756077609268,40.8,4801.5,4800.7,0.41665]
[1756077609467,0.7548,4801.4,4800.8,0.3284]
[1756077609669,0.3749,4801.4,4800.8,0.41664]
[1756077609866,40.8,4801.5,4801.0,0.41662]
[1756077610066,0.3799,4801.7,4801.2,0.3284]
[1756077610374,0.3799,4801.7,4801.0,0.41662]
[1756077610375,0.3799,4801.6,4801.0,0.41662]
[1756077610675,0.3799,4801.6,4801.5,0.9535]
[1756077612869,0.3749,4801.4,4801.3,0.3961]
[1756077613179,0.3799,4801.3,4801.2,0.6251]
[1756077613368,40.8,4801.7,4801.0,3.2078]
[1756077613573,0.7548,4801.6,4801.3,0.6251]
[1756077613769,0.3799,4801.5,4801.4,0.9535]
[1756077613975,0.7548,4801.5,4801.4,0.9535]
[1756077614370,0.3799,4801.5,4801.4,0.9535]